bitfinex/quotes_ETHUSD_20250823
["timestamp","ask_amount","ask_price","bid_price","bid_amount"]
[1755908530868,0.2705,4822.8,4822.7,0.19338956]
[1755908531071,0.7314,4822.8,4822.7,7.67338956]
[1755908531283,0.7314,4822.8,4822.7,19.03738956]
[1755908531558,0.7314,4822.8,4822.7,23.01338956]
[1755908531728,0.7314,4822.8,4822.7,14.06138956]
[1755908532235,0.7314,4822.8,4822.7,0.19338956]
[1755908533476,0.2705,4822.8,4822.7,30.19338956]
[1755908533645,0.2705,4822.8,4822.7,30.19285441]
[1755908534972,0.7313,4822.8,4822.7,15.45185441]
[1755908535178,0.02,4822.8,4822.7,14.89545441]
[1755908535348,0.02,4822.8,4822.7,31.56484904]
[1755908535541,0.02,4822.8,4822.7,31.2574401]
[1755908537165,0.02,4822.8,4822.7,30.92075441]
[1755908537576,0.4609,4824.1,4822.7,30.92075441]
[1755908537781,0.4609,4824.1,4822.8,33.73485441]
[1755908537979,0.4609,4824.1,4822.9,30.19285441]
[1755908538190,0.4609,4824.1,4823.7,0.104]
[1755908538483,0.2705,4823.8,4823.7,30.29685441]
[1755908539299,0.2725,4823.8,4823.7,30.29685441]
[1755908540101,0.7313,4823.8,4823.7,7.79285441]
[1755908540302,0.7313,4823.8,4823.7,0.29685441]
[1755908542107,4.75145175,4823.8,4823.7,0.104]
[1755908542266,4.75145175,4823.8,4823.7,0.29686871]
[1755908542664,4.75145175,4823.8,4823.7,0.19287783]
[1755908542665,6.74040011,4823.8,4823.7,0.19287783]
[1755908542909,10.28140011,4823.8,4823.7,0.19287783]
[1755908543898,6.74040011,4823.8,4823.7,0.19287783]
[1755908544103,10.28140011,4823.8,4823.7,0.19287783]
[1755908544469,4.29265175,4823.8,4823.7,0.19287783]
[1755908544673,4.04215175,4823.8,4823.7,1.59597246]
[1755908544904,4.04215175,4823.8,4823.7,1.28856352]
[1755908545169,4.04215175,4823.8,4823.7,4.3]
[1755908545687,4.04215175,4823.8,4823.7,34.3]
[1755908547672,3.79313853,4823.8,4823.7,34.3]
[1755908549902,3.79313853,4823.8,4823.7,35.893]
[1755908551085,0.002,4824.3,4823.8,0.66]
[1755908551086,3.79313853,4824.2,4823.8,0.66]
[1755908551288,0.002,4824.3,4824.1,0.299]
[1755908551489,0.002,4824.3,4824.2,33.541]
[1755908551671,0.002,4824.3,4824.2,34.3]
[1755908551875,0.002,4824.3,4824.2,30.0]
[1755908552205,0.002,4824.3,4824.2,3.541]
[1755908552776,0.002,4824.3,4824.2,3.645]
[1755908553106,0.002,4824.3,4824.2,33.645]
[1755908553307,0.7112,4824.3,4824.2,33.644]
[1755908553706,4.50433853,4824.3,4824.2,29.672]
[1755908554289,4.04193853,4824.3,4824.2,29.672]
[1755908554802,4.04193853,4824.3,4824.2,33.83775511]
[1755908555113,3.79513853,4824.3,4824.2,33.83775511]
[1755908555417,3.79513853,4824.3,4824.2,34.13675511]
[1755908555587,4.08753853,4824.3,4824.2,30.29775511]
[1755908555917,0.2944,4824.3,4824.2,13.38875511]
[1755908556114,1.12045385,4824.3,4824.2,0.19375511]
[1755908559098,1.12045385,4824.3,4823.8,0.02]
[1755908559297,0.70315385,4824.3,4823.9,0.19381542]
[1755908559612,0.4173,4824.2,4823.4,3.542]
[1755908559917,3.549,4824.1,4823.8,0.001]
[1755908560123,0.2924,4823.9,4823.8,0.001]
[1755908560293,0.2924,4823.9,4823.8,30.19484488]
[1755908563626,0.2924,4823.9,4823.8,0.19484488]
[1755908563869,14.28457187,4823.9,4822.2,10.001]
[1755908564130,11.59703187,4823.1,4822.7,30.0]
[1755908564435,5.2616707,4822.8,4822.7,30.0]
[1755908565419,5.2658707,4822.8,4822.7,30.0]
[1755908566016,5.2658707,4822.8,4822.7,30.104]
[1755908566529,0.0042,4822.8,4822.7,30.104]
[1755908567793,0.0042,4822.8,4822.7,0.104]
[1755908567794,3.94679,4822.8,4822.7,0.104]
[1755908567994,3.9639,4822.8,4822.7,0.104]
[1755908568224,3.9639,4822.8,4822.2,0.001]
[1755908568225,4.0679,4822.8,4822.2,0.001]
[1755908568430,12.00943073,4822.7,4822.2,0.001]
[1755908568732,12.01773073,4822.7,4822.2,0.001]
[1755908568932,13.7438038,4822.7,4822.2,0.001]
[1755908570019,0.4657,4822.6,4822.2,0.001]
[1755908570225,0.104,4822.3,4822.2,0.001]
[1755908570734,0.104,4822.3,4821.6,0.104]
[1755908570735,1.4754,4822.3,4821.6,0.104]
[1755908571035,1.4754,4822.3,4820.8,0.02]
[1755908571036,11.59573073,4821.2,4820.8,0.02]
[1755908571336,3.557,4821.1,4820.9,11.838]
[1755908571497,0.2479,4821.0,4820.9,11.838]
[1755908572008,0.2479,4821.0,4820.8,0.02]
[1755908572210,0.96882572,4821.0,4820.8,0.02]
[1755908572414,0.4614,4820.9,4820.8,0.02]
[1755908572621,0.7114,4820.9,4820.8,0.02]
[1755908575411,0.25,4820.9,4820.8,0.02]
[1755908576443,3.554,4820.9,4820.8,0.3166]
[1755908576744,0.66,4822.6,4820.9,30.0]
[1755908576745,1.593,4822.2,4820.9,30.0]
[1755908576943,3.555,4822.1,4821.0,0.4333]
[1755908577245,3.555,4822.1,4821.1,40.0]
[1755908577420,4.11637,4822.1,4821.1,30.0]
[1755908577740,4.11637,4822.1,4821.2,0.4333]
[1755908577945,4.11637,4822.1,4821.3,40.0]
[1755908578111,4.11637,4822.1,4821.3,30.0]
[1755908578425,3.554,4822.0,4821.3,8.134]
[1755908578632,0.570837,4821.9,4821.3,9.132]
[1755908578826,0.570837,4821.9,4821.3,8.134]
[1755908579035,0.570837,4821.9,4821.3,9.134]
[1755908579410,3.554,4822.0,4821.3,9.134]
[1755908579632,0.2989,4821.4,4820.8,0.021]
[1755908579808,3.554,4821.3,4820.9,30.0]
[1755908580012,3.553,4821.2,4821.0,0.4333]
[1755908580213,11.59573073,4821.7,4821.1,40.0]
[1755908580419,3.554,4821.6,4821.1,30.2966]
[1755908580712,3.554,4821.5,4821.2,30.0]
[1755908580913,12.7553038,4821.7,4821.2,30.0]
[1755908581148,0.104,4821.8,4821.6,0.2966]
[1755908581357,0.104,4821.8,4821.7,30.0]
[1755908581558,1.593,4822.2,4821.8,30.0]
[1755908581762,3.553,4821.9,4821.8,30.0]
[1755908581967,3.553,4821.9,4821.8,14.6369]
[1755908582131,3.553,4821.9,4821.8,23.6729]
[1755908582329,3.553,4821.9,4821.8,30.7299]
[1755908583124,1.593,4822.2,4821.8,30.7299]
[1755908583328,1.593,4822.2,4821.9,30.0]
[1755908583329,3.552,4822.1,4821.9,30.0]
[1755908583530,3.552,4822.1,4822.0,0.7299]
[1755908583844,3.552,4822.1,4822.0,30.2966]
[1755908584430,1.593,4822.2,4822.0,30.2966]
[1755908584431,1.593,4822.2,4822.0,30.7299]
[1755908584633,3.552,4822.1,4822.0,0.7299]
[1755908584842,5.144,4822.2,4822.0,30.7299]
[1755908585046,5.144,4822.2,4822.1,0.4333]
[1755908585242,5.144,4822.2,4822.1,0.7299]
[1755908585762,5.144,4822.2,4822.1,0.2966]
[1755908586331,5.143,4822.2,4822.1,0.2966]
[1755908586533,5.143,4822.2,4821.7,0.5373]
[1755908586738,1.593,4822.2,4822.1,0.2966]
[1755908587064,5.141,4822.2,4822.1,30.7299]
[1755908588454,10.40407883,4822.2,4822.1,4.0536]
[1755908588655,11.69848671,4822.2,4822.1,3.757]
[1755908588967,12.26598671,4822.2,4821.1,0.104]
[1755908589167,5.26307883,4821.2,4821.1,0.104]
[1755908589367,8.81007883,4821.2,4821.1,0.104]
[1755908589870,8.81007883,4821.2,4821.1,30.4006]
[1755908590365,3.547,4821.2,4821.1,30.4006]
[1755908590671,3.547,4821.2,4821.1,2.633]
[1755908590672,3.7949,4821.2,4821.1,2.633]
[1755908591049,3.547,4821.2,4821.1,2.633]
[1755908591245,0.02,4822.8,4821.3,0.66]
[1755908591436,0.002,4823.8,4822.8,0.66]
[1755908591636,0.4657,4825.6,4825.2,3.474]
[1755908591637,3.586,4825.5,4825.2,3.474]
[1755908591834,0.2655,4825.3,4825.2,3.474]
[1755908592082,0.3695,4825.3,4825.2,3.66745356]
[1755908592448,0.3695,4825.3,4825.2,3.66739087]
[1755908593789,0.4837,4825.8,4825.2,3.66739087]
[1755908593790,2.0597,4826.2,4825.8,1.45283]
[1755908593935,0.2655,4825.9,4825.8,1.45283]
[1755908594138,0.3695,4825.9,4825.8,1.64614871]
[1755908594542,3.9575,4825.9,4825.8,1.64614871]
[1755908596749,3.588,4825.9,4825.8,1.64614871]
[1755908596965,3.584,4825.9,4825.8,1.64614871]
[1755908597165,2.13117,4825.9,4825.8,0.19331871]
[1755908597384,2.514087,4825.9,4825.8,0.19331871]
[1755908598399,2.773687,4825.9,4825.8,0.19331871]
[1755908598550,3.243287,4825.9,4825.8,0.19331871]
[1755908599023,0.104,4826.1,4825.8,0.49871871]
[1755908599295,0.104,4826.1,4825.9,12.84291871]
[1755908599502,0.104,4826.1,4826.0,30.94831871]
[1755908599657,3.6,4826.5,4826.0,30.94831871]
[1755908599860,3.6,4826.5,4826.1,5.69931871]
[1755908600103,3.964,4826.5,4826.2,0.19331871]
[1755908600390,3.964,4826.5,4825.4,0.4496]
[1755908600391,0.2903,4826.3,4825.4,0.4496]
[1755908600558,0.2903,4826.3,4825.5,5.38638316]
[1755908600760,0.2903,4826.3,4825.6,0.19238316]
[1755908601057,0.2903,4826.3,4824.8,0.02]
[1755908601058,11.60295876,4825.7,4824.8,0.02]
[1755908601294,11.60295876,4825.7,4824.9,0.19230814]
[1755908601295,5.192,4825.6,4824.9,0.19230814]
[1755908601495,5.192,4825.6,4824.8,0.02]
[1755908601911,3.604,4825.5,4824.9,30.0]
[1755908602200,3.603,4825.4,4824.9,30.0]
[1755908602362,3.603,4825.4,4825.3,0.3054]
[1755908602563,3.603,4825.4,4825.0,0.4496]
[1755908602759,3.603,4825.4,4824.9,30.0]
[1755908603200,3.603,4825.4,4825.0,0.4496]
[1755908603401,3.603,4825.4,4825.1,40.0]
[1755908603712,3.603,4825.4,4825.3,0.3054]
[1755908604069,7.39613853,4825.4,4825.3,0.3054]
[1755908604402,3.79313853,4825.4,4825.3,0.3054]
[1755908604709,7.39313853,4825.4,4825.3,17.659]
[1755908605000,7.39313853,4825.4,4825.3,0.3054]
[1755908605372,7.39313853,4825.4,4825.3,0.755]
[1755908606094,7.39313853,4825.4,4824.9,18.643]
[1755908606297,3.6,4825.4,4825.0,2.683]
[1755908606494,3.6,4825.4,4824.9,30.0]
[1755908606703,3.6,4825.4,4825.3,0.3054]
[1755908607076,3.6,4825.4,4825.3,30.3054]
[1755908607277,1.593,4825.6,4825.3,30.755]
[1755908607506,3.597,4825.5,4825.4,30.4496]
[1755908607723,3.597,4825.5,4825.4,30.755]
[1755908607871,3.596,4825.5,4825.4,30.755]
[1755908609680,3.596,4825.5,4825.4,30.3054]
[1755908610806,3.596,4825.5,4825.4,22.3404]
[1755908611378,3.596,4825.5,4825.4,30.3054]
[1755908613035,1.593,4825.6,4825.4,30.3054]
[1755908613235,1.593,4825.6,4825.5,5.17453938]
[1755908613440,5.18,4825.6,4825.5,5.17453938]
[1755908614307,5.18,4825.6,4825.5,5.92953938]
[1755908617435,5.18,4825.6,4825.5,5.737]
[1755908617636,5.18,4825.6,4825.5,5.92987788]
[1755908618049,5.18,4825.6,4825.5,5.48027788]
[1755908618782,4.93102215,4825.6,4825.5,5.48027788]
[1755908621167,1.34402215,4825.6,4825.5,5.48027788]
[1755908621369,4.67504617,4825.6,4825.5,5.48027788]
[1755908621878,4.93464617,4825.6,4825.5,5.17487788]
[1755908622179,4.93464617,4825.6,4825.5,0.19287788]
[1755908622343,17.50066955,4825.6,4824.9,0.001]
[1755908622663,0.42543,4826.2,4825.5,0.3054]
[1755908622979,1.593,4826.3,4825.5,0.3054]
[1755908622980,3.585,4826.1,4825.5,0.3054]
[1755908623342,0.2596,4825.6,4825.0,0.4496]
[1755908623579,3.585,4825.5,4825.1,30.0]
[1755908623783,3.585,4825.5,4825.1,19.503]
[1755908623784,3.39048976,4825.5,4825.1,19.503]
[1755908623947,3.39048976,4825.5,4825.1,17.572]
[1755908624150,3.39048976,4825.5,4825.2,10.551]
[1755908624351,3.39048976,4825.5,4825.0,30.0]
[1755908624551,3.39048976,4825.5,4825.1,0.4496]
[1755908624751,3.39048976,4825.5,4825.4,0.3054]
[1755908625051,3.39048976,4825.5,4825.4,30.3054]
[1755908625671,1.593,4826.3,4825.4,30.755]
[1755908625981,3.584,4826.2,4825.5,30.0]
[1755908628201,3.584,4826.2,4824.9,0.001]
[1755908628202,0.2596,4825.6,4824.9,0.001]
[1755908628352,3.585,4825.5,4825.0,33.585]
[1755908628563,3.585,4825.5,4825.1,30.0]
[1755908628771,3.585,4825.5,4825.0,30.0]
[1755908628772,3.33602888,4825.5,4825.0,30.0]
[1755908628952,3.33602888,4825.5,4825.0,26.835]
[1755908629149,3.33602888,4825.5,4825.0,28.7834]
[1755908629352,3.33602888,4825.5,4825.1,30.0]
[1755908629785,3.33602888,4825.5,4825.1,26.628]
[1755908630081,3.33602888,4825.5,4825.1,14.993]
[1755908630312,3.33602888,4825.5,4825.1,30.0]
[1755908630464,3.33602888,4825.5,4825.1,0.4334]
[1755908630668,3.33602888,4825.5,4825.2,40.0]
[1755908630852,3.33602888,4825.5,4825.2,30.0]
[1755908631049,3.33602888,4825.5,4825.4,0.292]
[1755908631253,3.33602888,4825.5,4825.4,30.7254]
[1755908631487,0.002,4826.2,4825.4,30.7254]
[1755908631700,0.002,4826.2,4825.5,33.58]
[1755908631901,0.002,4826.2,4826.1,0.292]
[1755908632102,0.002,4826.2,4826.1,29.227]
[1755908632309,0.002,4826.2,4826.1,30.8294]
[1755908632805,0.002,4826.2,4825.1,1.85138459]
[1755908632806,0.7241,4826.2,4825.1,1.85138459]
[1755908632969,0.8281,4826.2,4825.5,0.104]
[1755908633175,1.60180588,4826.1,4825.5,0.104]
[1755908633606,3.584,4826.0,4825.5,0.104]
[1755908634008,0.2596,4825.6,4825.0,1.85138459]
[1755908634211,3.583,4825.5,4825.3,0.104]
[1755908634512,3.583,4825.5,4825.4,0.19428425]
[1755908634710,3.583,4825.5,4825.4,0.48628915]
[1755908635915,3.582,4825.7,4825.4,0.48628915]
[1755908636112,3.582,4825.7,4825.5,30.19428915]
[1755908636413,3.582,4825.7,4825.6,0.48628915]
[1755908638719,3.577,4825.9,4825.6,0.48628915]
[1755908638918,3.32803075,4825.9,4825.7,0.19428915]
[1755908639117,3.32803075,4825.9,4825.8,0.19428915]
[1755908639323,3.59273075,4825.9,4825.8,0.19428915]
[1755908640223,4.12180383,4825.9,4825.8,0.19428915]
[1755908640423,4.58630383,4825.9,4824.4,10.0]
[1755908640622,4.58630383,4825.9,4824.9,0.001]
[1755908640623,11.70695876,4825.4,4824.9,0.001]
[1755908640790,0.104,4825.0,4824.9,0.001]
[1755908640997,2.05819588,4825.0,4824.9,0.001]
[1755908641516,0.104,4825.0,4824.9,0.001]
[1755908641714,5.168,4825.3,4824.9,0.293]
[1755908641715,0.104,4825.2,4824.9,0.293]
[1755908642690,0.104,4825.2,4824.9,0.001]
[1755908643500,0.2667,4825.0,4824.9,0.001]
[1755908647049,0.2667,4825.0,4824.4,0.001]
[1755908647050,0.7312,4825.0,4824.4,0.001]
[1755908647228,0.104,4824.6,4824.4,0.001]
[1755908647545,0.402,4824.6,4824.4,0.001]
[1755908647949,0.8335,4824.6,4824.4,0.001]
[1755908652434,0.402,4824.6,4824.4,0.001]
[1755908652736,0.902122,4824.6,4824.4,0.001]
[1755908654321,6.59185285,4824.6,4824.4,0.001]
[1755908654522,5.25983085,4823.9,4823.4,0.4074]
[1755908654826,5.25983085,4823.9,4823.8,0.292]
[1755908655028,8.82183085,4823.9,4823.8,0.292]
[1755908655755,0.60032,4824.9,4823.9,30.0]
[1755908655756,5.25983085,4824.9,4823.9,30.0]
[1755908655953,0.104,4824.7,4823.9,30.34414908]
[1755908656129,0.104,4824.7,4824.2,0.104]
[1755908656453,0.104,4824.7,4824.6,0.292]
[1755908656665,0.104,4824.7,4824.6,0.7254]
[1755908658139,3.664,4824.7,4824.6,0.7254]
[1755908658338,3.664,4824.7,4824.6,0.292]
[1755908659772,3.664,4824.7,4824.3,0.4398]
[1755908659967,3.56,4824.7,4824.3,0.4398]
[1755908660269,3.56,4824.7,4824.2,0.104]
[1755908660474,3.56,4824.7,4824.6,0.3148]
[1755908661046,7.0,4824.8,4824.6,0.3148]
[1755908661274,3.557,4824.7,4824.6,0.3148]
[1755908663972,3.557,4824.7,4824.2,0.5438]
[1755908664152,3.557,4824.7,4824.3,0.4398]
[1755908664745,3.557,4824.7,4824.6,0.3148]
[1755908665852,3.551,4824.7,4824.6,0.3148]
[1755908666053,7.02,4824.8,4824.6,0.3148]
[1755908666355,3.8852,4824.6,4824.4,0.4398]
[1755908666698,3.8852,4824.6,4824.5,0.3148]
[1755908666896,7.4352,4824.6,4824.5,0.3148]
[1755908669283,7.4342,4824.6,4824.5,0.3148]
[1755908669467,7.4342,4824.6,4824.5,0.7546]
[1755908669794,7.4342,4824.6,4824.5,0.3148]
[1755908670091,7.7352,4824.6,4824.2,0.104]
[1755908670652,9.35233,4824.6,4824.2,0.104]
[1755908670877,0.104,4824.3,4823.6,0.001]
[1755908671085,0.301,4823.7,4823.6,0.001]
[1755908671268,7.8392,4823.7,4823.6,0.001]
[1755908671471,8.54489761,4823.7,4823.6,0.001]
[1755908671681,8.98529761,4823.7,4823.6,0.001]
[1755908675001,8.98529761,4823.7,4822.8,0.02]
[1755908675179,0.104,4823.4,4822.8,0.02]
[1755908675512,3.954,4823.4,4822.8,0.02]
[1755908675718,5.29292976,4823.4,4822.8,0.02]
[1755908676749,0.66,4823.1,4821.8,0.02]
[1755908676899,0.301,4821.9,4821.8,0.02]
[1755908677099,3.549,4821.9,4821.8,0.02]
[1755908677318,3.549,4821.9,4821.8,0.7746]
[1755908677509,3.549,4821.9,4821.8,0.3348]
[1755908677920,1.593,4822.1,4821.8,0.3348]
[1755908678204,3.549,4822.0,4821.8,0.3348]
[1755908678524,5.26409574,4821.9,4821.8,0.3348]
[1755908680028,8.81409574,4821.9,4821.8,0.3348]
[1755908680467,9.11509574,4821.9,4821.8,0.02]
[1755908682325,10.61836531,4821.9,4821.8,0.02]
[1755908683621,3.8842,4822.0,4821.8,0.7746]
[1755908683805,9.14829574,4822.0,4821.8,0.7746]
[1755908684004,3.55,4821.9,4821.8,0.7746]
[1755908684252,9.14829574,4822.0,4821.8,0.7746]
[1755908684449,3.55,4821.9,4821.8,0.7746]
[1755908684619,3.55,4821.9,4821.8,0.3348]
[1755908685316,3.55,4821.9,4821.8,0.7746]
[1755908693815,1.593,4822.1,4821.8,0.3348]
[1755908694042,3.55,4822.0,4821.8,0.3348]
[1755908694233,3.55,4822.0,4821.9,0.4307]
[1755908694436,3.55,4822.0,4821.9,0.2931]
[1755908696115,3.55,4822.0,4821.9,0.7238]
[1755908696447,3.55,4822.0,4821.9,0.2931]
[1755908698949,0.002,4823.3,4822.0,30.0]
[1755908698950,0.104,4822.7,4822.0,30.0]
[1755908699146,3.55,4822.6,4822.0,30.4307]
[1755908699448,3.55,4822.6,4821.9,0.104]
[1755908699641,0.2978,4822.1,4822.0,2.031]
[1755908699816,3.8478,4822.1,4821.9,0.3971]
[1755908700022,4.307,4822.1,4821.9,0.2931]
[1755908700322,4.307,4822.1,4821.8,0.02]
[1755908700647,0.4592,4822.0,4821.8,0.02]
[1755908700849,3.55,4821.9,4821.8,0.02]
[1755908701349,3.55,4821.9,4821.8,0.3131]
[1755908702416,3.55,4821.9,4821.8,30.7438]
[1755908702611,3.55,4822.2,4821.8,30.7438]
[1755908702850,3.55,4822.2,4822.0,0.104]
[1755908703019,3.55,4822.2,4822.1,38.616]
[1755908703221,3.55,4822.2,4822.1,28.9091]
[1755908706058,3.55,4822.2,4822.1,26.5501]
[1755908706259,3.55,4822.2,4822.1,2.8861]
[1755908706564,3.55,4822.2,4822.1,2.593]
[1755908706921,3.8478,4822.2,4822.0,0.104]
[1755908707467,3.8478,4822.2,4821.8,0.02]
[1755908707468,4.23258,4822.2,4821.8,0.02]
[1755908707662,3.8478,4822.2,4821.8,0.02]
[1755908708237,3.55,4822.2,4821.8,0.02]
[1755908708442,3.55,4822.2,4821.9,30.0]
[1755908708646,1.594,4822.9,4822.1,0.2931]
[1755908708839,0.104,4822.7,4822.1,0.2931]
[1755908710033,1.594,4822.9,4822.3,0.104]
[1755908710233,3.549,4822.8,4822.4,40.0]
[1755908710531,3.549,4822.8,4822.4,30.0]
[1755908710968,3.549,4822.8,4822.5,0.19433909]
[1755908711170,3.549,4822.8,4822.6,0.19433909]
[1755908711337,3.549,4822.8,4822.7,0.19433909]
[1755908711537,3.8468,4822.8,4822.7,0.19433909]
[1755908712459,3.8468,4822.8,4822.3,0.104]
[1755908712670,3.8468,4822.8,4822.4,30.19430344]
[1755908712835,3.8468,4822.8,4822.5,0.19430344]
[1755908713034,3.8468,4822.8,4822.6,0.19430344]
[1755908713258,3.8468,4822.8,4822.7,0.19430344]
[1755908718980,3.8468,4822.8,4822.7,0.19429135]
[1755908720983,4.4472,4822.8,4822.7,0.19429135]
[1755908721144,10.26859574,4822.8,4822.7,0.19429135]
[1755908726787,10.26859574,4822.8,4821.8,0.02]
[1755908726954,0.4533,4822.7,4821.9,0.1943086]
[1755908727149,3.547,4822.6,4822.0,0.1943086]
[1755908727452,0.104,4821.9,4821.8,0.02]
[1755908727653,3.651,4821.9,4821.8,0.51149887]
[1755908727852,3.651,4821.9,4821.8,0.96529887]
[1755908728850,3.651,4821.9,4821.8,0.51149887]
[1755908729191,3.9382,4821.9,4821.8,0.21429887]
[1755908729581,3.9382,4821.9,4821.8,0.21529887]
[1755908729764,3.651,4821.9,4821.8,0.21529887]
[1755908729964,3.9382,4821.9,4821.8,0.21529887]
[1755908731384,3.66790113,4821.7,4821.6,0.001]
[1755908731579,7.21490113,4821.7,4821.6,0.2982]
[1755908732992,7.21490113,4821.7,4821.6,0.752]
[1755908735265,7.21490113,4821.7,4821.6,0.2982]
[1755908735992,7.21490113,4821.7,4821.6,0.001]
[1755908736397,7.50210113,4821.7,4821.6,0.001]
[1755908737359,3.66690113,4821.6,4821.3,0.001]
[1755908737559,3.546,4821.5,4821.3,0.4548]
[1755908737787,3.546,4821.5,4821.4,0.2972]
[1755908738661,8.86946399,4821.5,4821.3,0.001]
[1755908738876,4.22420113,4821.4,4821.3,0.001]
[1755908739086,4.51140113,4821.4,4821.3,0.001]
[1755908742063,8.05740113,4821.4,4821.3,0.001]
[1755908742266,9.4811571,4821.4,4821.3,0.001]
[1755908746086,3.66490113,4820.9,4820.6,0.001]
[1755908746409,21.35619687,4820.9,4820.6,0.001]
[1755908746709,21.91349687,4820.9,4820.6,0.001]
[1755908752186,3.64090113,4820.1,4819.9,0.4358]
[1755908752391,3.64090113,4820.1,4820.0,0.30012857]
[1755908752588,7.18590113,4820.1,4820.0,0.73592857]
[1755908752900,3.64090113,4820.1,4820.0,30.73592857]
[1755908753211,3.64090113,4820.1,4820.0,31.46922146]
[1755908753917,3.64090113,4820.1,4820.0,32.09213946]
[1755908754603,3.63954113,4820.1,4820.0,32.08381089]
[1755908759621,3.63954113,4820.1,4820.0,31.77698528]
[1755908765654,3.544,4820.8,4820.0,31.77698528]
[1755908765838,3.544,4820.8,4820.1,30.75826728]
[1755908766153,3.544,4820.8,4820.6,0.104]
[1755908766445,3.544,4820.8,4820.7,30.0]
[1755908766744,3.544,4820.8,4820.7,30.2918]
[1755908769257,3.8499,4820.8,4820.7,30.0]
[1755908770106,4.2994,4820.8,4820.7,30.0]
[1755908770952,3.8499,4820.8,4820.7,30.0]
[1755908772534,3.544,4820.8,4820.7,30.0]
[1755908772850,3.544,4820.8,4820.7,30.7276]
[1755908774033,3.544,4820.8,4820.7,30.2918]
[1755908775450,3.544,4820.8,4820.7,30.0]
[1755908780961,3.546,4820.8,4820.7,30.0]
[1755908781830,3.546,4820.8,4820.7,30.291]
[1755908782025,0.002,4820.8,4820.7,33.832]
[1755908782280,0.002,4820.8,4820.7,34.92969289]
[1755908782565,0.002,4821.3,4820.8,0.62929289]
[1755908782737,0.002,4821.3,4820.9,43.54]
[1755908782937,0.002,4821.3,4821.0,30.0]
[1755908783130,0.002,4821.3,4820.9,30.0]
[1755908783561,0.002,4821.3,4821.2,0.104]
[1755908783766,0.288,4821.3,4821.2,30.104]
[1755908783934,0.288,4821.3,4821.2,25.358]
[1755908784129,0.002,4821.3,4821.2,25.358]
[1755908784326,0.002,4821.3,4821.2,30.104]
[1755908784830,0.002,4821.3,4821.2,30.395]
[1755908787131,0.002,4821.3,4821.2,30.71746728]
[1755908788279,0.002,4821.3,4821.2,1.18586728]
[1755908788665,0.002,4821.3,4821.2,31.18586728]
[1755908789289,0.002,4821.3,4821.2,34.72486728]
[1755908789487,0.002,4821.3,4821.2,34.4024]
[1755908789778,3.64154113,4821.3,4821.2,34.4024]
[1755908790163,3.64154113,4821.3,4821.2,34.72486728]
[1755908792384,3.39242221,4821.3,4821.2,34.72486728]
[1755908793883,3.39242221,4821.3,4821.2,35.34759728]
[1755908796085,3.39242221,4821.3,4821.2,36.00759728]
[1755908798278,3.39242221,4821.3,4821.2,36.31442289]
[1755908799090,3.39242221,4821.3,4821.2,36.31442289]
[1755908799448,3.39442221,4821.6,4821.3,30.66]
[1755908799648,3.39442221,4821.6,4821.5,0.291]
[1755908799849,3.39442221,4821.6,4821.5,30.395]
[1755908800143,3.39442221,4821.6,4821.5,34.553685]
[1755908801487,3.39442221,4821.6,4821.5,35.022085]
[1755908804558,3.39442221,4821.6,4821.5,34.553685]
[1755908804759,3.39442221,4821.6,4821.5,35.34455228]
[1755908804966,0.002,4821.6,4821.5,34.87615228]
[1755908807610,0.002,4821.6,4821.5,5.18297789]
[1755908807808,0.002,4821.7,4821.6,0.62929289]
[1755908808109,0.002,4821.7,4821.6,31.40943289]
[1755908808282,0.002,4821.7,4821.6,31.38869289]
[1755908808481,0.002,4821.7,4821.6,31.47171689]
[1755908813024,0.002,4821.7,4821.6,32.13031689]
[1755908813226,0.002,4821.7,4821.6,32.23431689]
[1755908817016,0.002,4821.7,4821.6,31.92749128]
[1755908817204,0.002,4821.7,4821.6,32.23431689]
[1755908817518,0.002,4821.7,4821.6,31.92749128]
[1755908817690,0.4381,4823.5,4821.8,0.66]
[1755908817897,0.022,4823.8,4822.5,0.3014]
[1755908818097,0.4381,4823.1,4822.5,33.95813613]
[1755908818304,0.4381,4823.1,4822.5,33.9374]
[1755908818497,0.4381,4823.1,4822.5,34.33973654]
[1755908820335,0.2918,4822.6,4822.5,34.03833654]
[1755908820539,0.2918,4822.6,4822.5,34.03733654]
[1755908820735,0.7299,4822.6,4822.5,34.03733654]
[1755908820937,0.7299,4822.6,4822.5,34.14849546]
[1755908821965,0.2918,4822.6,4822.5,34.14849546]
[1755908824323,0.002,4822.6,4822.5,34.14849546]
[1755908825397,0.002,4822.6,4822.5,34.14749546]
[1755908827620,0.4381,4822.9,4822.5,34.14749546]
[1755908827818,0.4381,4822.9,4822.6,30.34006224]
[1755908828030,0.4381,4822.9,4822.6,30.31932654]
[1755908828431,0.4381,4822.9,4822.6,30.75742654]
[1755908828940,0.2918,4822.7,4822.6,30.75742654]
[1755908829141,0.002,4822.7,4822.6,30.75742654]
[1755908830306,0.002,4822.7,4822.6,34.28642654]